fUSD/lending_fUSD_20250423
["ID","MTS","AMOUNT","RATE_DAILY","PERIOD"]
[358750136,1745412643838,-187.02,0.000389,2]
[358750138,1745412643849,-187.02,0.000389,2]
[358750140,1745412643859,-187.02,0.000389,2]
[358750142,1745412643869,-187.02,0.000389,2]
[358750144,1745412643879,-187.02,0.000389,2]
[358750146,1745412643889,-187.02,0.000389,2]
[358750148,1745412643899,-187.02,0.000389,2]
[358750150,1745412643910,-187.02,0.000389,2]
[358750152,1745412643919,-187.02,0.000389,2]
[358750154,1745412643930,-187.02,0.000389,2]
[358750156,1745412643940,-187.02,0.000389,2]
[358750158,1745412643953,-187.02,0.000389,2]
[358750160,1745412643963,-187.02,0.000389,2]
[358750162,1745412643972,-187.02,0.000389,2]
[358750164,1745412643985,-187.02,0.000389,2]
[358750166,1745412643995,-187.02,0.000389,2]
[358750168,1745412644004,-187.02,0.000389,2]
[358750170,1745412644014,-187.02,0.000389,2]
[358750172,1745412644025,-187.02,0.000389,2]
[358750174,1745412644035,-187.02,0.000389,2]
[358750176,1745412644045,-187.02,0.000389,2]
[358750178,1745412644055,-187.02,0.000389,2]
[358750179,1745412644064,-187.02,0.000389,2]
[358750182,1745412644075,-187.02,0.000389,2]
[358750184,1745412644085,-187.02,0.000389,2]
[358750186,1745412644095,-187.02,0.000389,2]
[358750188,1745412644104,-187.02,0.000389,2]
[358750190,1745412644113,-150.0,0.00038933,2]
[358750192,1745412644123,-1685.83,0.00038998,2]
[358750194,1745412644133,-650.0,0.00039,2]
[358750196,1745412644142,-201.77295472,0.00039576,2]
[358750198,1745412644152,-360.55680949,0.00039726,15]
[358750200,1745412644162,-4972.12059914,0.00039728,15]
[358750201,1745412644171,-150.0,0.00039798,2]
[358750203,1745412644181,-510.658,0.000398,6]
[358750205,1745412644190,-8965.00793585,0.00039999,7]
[358750207,1745412644201,-932.30454894,0.0004,5]
[358750209,1745412644210,-4835.49361546,0.0004,10]
[358750211,1745412644220,-1828.98834703,0.0004,2]
[358750213,1745412644231,-1235.76222445,0.0004,10]
[358750216,1745412644240,-1539.91019181,0.0004,15]
[358750217,1745412644250,-163.22183248,0.0004,14]
[358750219,1745412644260,-304.32,0.00040062,2]
[358750221,1745412644270,-300.99,0.00040062,2]
[358750223,1745412644279,-302.25,0.00040062,2]
[358750225,1745412644289,-200.0,0.00040116,2]
[358750227,1745412644299,-530.15871669,0.00040271,5]
[358750229,1745412644308,-843.49715552,0.00040271,5]
[358750231,1745412644318,-4099.07,0.000403,14]
[358750233,1745412644328,-152.0,0.00040401,3]
[358750235,1745412644338,-151.0,0.00040624,14]
[358750237,1745412644348,-151.0,0.00040624,14]
[358750240,1745412644358,-151.0,0.00040624,14]
[358750241,1745412644368,-571.090706,0.00040624,14]
[358750243,1745412644377,-571.090706,0.00040624,14]
[358750245,1745412644387,-4023.33356347,0.00040624,16]
[358750362,1745412645656,-150.0,0.00034999,2]
[358750364,1745412645667,-187.02,0.000389,2]
[358750366,1745412645676,-187.02,0.000389,2]
[358750368,1745412645686,-187.02,0.000389,2]
[358750370,1745412645695,-187.02,0.000389,2]
[358750372,1745412645705,-187.02,0.000389,2]
[358750374,1745412645715,-187.02,0.000389,2]
[358750376,1745412645725,-187.02,0.000389,2]
[358750378,1745412645736,-187.02,0.000389,2]
[358750380,1745412645746,-187.02,0.000389,2]
[358750382,1745412645757,-187.02,0.000389,2]
[358750384,1745412645767,-187.02,0.000389,2]
[358750386,1745412645776,-187.02,0.000389,2]
[358750388,1745412645786,-187.02,0.000389,2]
[358750389,1745412645795,-187.02,0.000389,2]
[358750391,1745412645805,-187.02,0.000389,2]
[358750393,1745412645815,-187.02,0.000389,2]
[358750396,1745412645824,-187.02,0.000389,2]
[358750397,1745412645833,-187.02,0.000389,2]
[358750399,1745412645843,-187.02,0.000389,2]
[358750401,1745412645852,-187.02,0.000389,2]
[358750404,1745412645862,-187.02,0.000389,2]
[358750405,1745412645871,-187.02,0.000389,2]
[358750408,1745412645881,-948.78703567,0.00040624,16]
[358750410,1745412645890,-150.0,0.00040663,2]
[358750412,1745412645900,-139.47543584,0.00040888,7]
[358750414,1745412645912,-34.29456416,0.00040888,7]
[358750416,1745412645921,-700.0,0.00041,2]
[358750418,1745412645931,-187.0,0.00041,14]
[358750420,1745412645941,-224.9806843,0.00041007,2]
[358750422,1745412645952,-2000.0,0.00041095,2]
[358750424,1745412645962,-820.45425611,0.00041095,2]
[358750426,1745412645977,-1179.54574389,0.00041095,2]
[358750428,1745412645988,-213.55824963,0.00041095,2]
[358750431,1745412646004,-1786.44175037,0.00041095,2]
[358750433,1745412646013,-2000.0,0.00041095,2]
[358750435,1745412646022,-2000.0,0.00041095,2]
[358750437,1745412646032,-2000.0,0.00041095,2]
[358750439,1745412646043,-2000.0,0.00041095,2]
[358750441,1745412646052,-2000.0,0.00041095,2]
[358750444,1745412646061,-2000.0,0.00041095,2]
[358750446,1745412646070,-2000.0,0.00041095,2]
[358750448,1745412646080,-2000.0,0.00041095,2]
[358750450,1745412646089,-2000.0,0.00041095,2]
[358750452,1745412646098,-2000.0,0.00041095,2]
[358750454,1745412646108,-2000.0,0.00041095,2]
[358750456,1745412646117,-2000.0,0.00041095,2]
[358750458,1745412646126,-2000.0,0.00041095,2]
[358750460,1745412646136,-640.69932948,0.00041095,2]
[358750462,1745412646145,-500.0,0.00041096,10]
[358750464,1745412646155,-202.13170939,0.00041096,7]
[358750467,1745412646164,-166.66,0.00041207,2]
[358750471,1745412646174,-1685.83,0.00041262,2]
[358750474,1745412646184,-263.51781613,0.00041452,10]
[358750477,1745412646193,-4972.12059914,0.00041521,16]
[358750480,1745412646202,-151.911062,0.00041521,14]
[358750483,1745412646211,-151.0,0.00041521,14]
[358750486,1745412646221,-151.0,0.00041521,14]
[358750489,1745412646230,-151.0,0.00041521,14]
[358750491,1745412646240,-150.0,0.00041528,2]
[358750493,1745412646249,-987.69421937,0.00041644,10]
[358750507,1745412646379,-191.40237964,0.000199,2]
[358750509,1745412646389,-12.30578063,0.00041644,10]
[358750511,1745412646399,-2059.0,0.00041691,2]
[358750513,1745412646408,-390.701,0.00041691,2]
[358750515,1745412646418,-1334.0,0.00041691,2]
[358750517,1745412646427,-796.0,0.00041691,2]
[358750519,1745412646436,-1285.0,0.00041691,2]
[358750521,1745412646446,-547.0,0.00041691,2]
[358750523,1745412646455,-1444.0,0.00041691,2]
[358750525,1745412646465,-910.0,0.00041691,2]
[358750528,1745412646475,-578.0,0.00041691,2]
[358750529,1745412646486,-4166.0,0.00041691,2]
[358750531,1745412646496,-152.0,0.00041691,2]
[358750533,1745412646506,-876.0,0.00041691,2]
[358750535,1745412646515,-870.0,0.00041691,2]
[358750537,1745412646525,-2145.0,0.00041691,2]
[358750539,1745412646535,-3984.0,0.00041691,2]
[358750541,1745412646544,-151.0,0.00041692,14]
[358750543,1745412646553,-154.333565,0.00041692,14]
[358750545,1745412646563,-151.0,0.00041692,14]
[358750547,1745412646573,-423.954629,0.00041692,14]
[358750549,1745412646582,-423.954629,0.00041692,14]
[358750551,1745412646591,-1002.55139053,0.00042063,2]
[358750553,1745412646601,-200.0,0.00042074,14]
[358750555,1745412646611,-201.05902538,0.00042074,14]
[358750557,1745412646620,-311.97860147,0.00042192,10]
[358750559,1745412646629,-4099.07,0.000422,14]
[358750561,1745412646639,-276.655576,0.000422,14]
[358750563,1745412646648,-276.655576,0.000422,14]
[358750565,1745412646657,-1268.79,0.00042267,5]
[358750567,1745412646667,-150.0,0.00042394,2]
[358750569,1745412646676,-4972.12059914,0.00042417,17]
[358750571,1745412646685,-152.0,0.00042849,4]
[358750573,1745412646695,-750.0,0.00043,2]
[358750575,1745412646705,-150.0,0.00043259,2]
[358750577,1745412646714,-36233.1860696,0.000433,5]
[358750579,1745412646727,-7248.31765998,0.000433,5]
[358750582,1745412646744,-1312.242,0.000433,5]
[358751482,1745412782620,748.96902775,0.00043835,30]
[358751487,1745412895960,499.215285,0.0004383,30]
[358751499,1745413035356,500.0,0.00043836,30]
[358751502,1745413109713,673.748,0.00042348,64]
[358751505,1745413155719,447.95,0.00043766,30]
[358751508,1745413222488,1000.0,0.00043835,30]
[358751511,1745413268211,7688.43450749,7.945e-05,2]
[358751512,1745413268239,2428.31302951,7.945e-05,2]
[358751513,1745413320675,160.0,0.00041063,30]
[358751514,1745413359857,600.0,0.00043836,30]
[358751517,1745413540150,1000.0,0.00043836,120]
[358751518,1745413542218,1000.0,0.00043836,120]
[358751519,1745413544302,1000.0,0.00043836,120]
[358751526,1745413663050,50000.0,0.00043,30]
[358751527,1745413735429,165.18155579,0.00043835,30]
[358751530,1745413771519,500.0,0.00043835,30]
[358751558,1745413831430,-500.0,0.00022656,2]
[358751559,1745413831441,-250.0,0.00023003,2]
[358751560,1745413831451,-250.0,0.00024921,2]
[358751561,1745413831462,-250.0,0.00024921,2]
[358751562,1745413831471,-189.25783037,0.00025644,2]
[358751563,1745413831482,-303.8,0.00025674,2]
[358751564,1745413831492,-302.48,0.00025674,2]
[358751565,1745413831503,-700.0,0.00027397,2]
[358751566,1745413831514,-338.0,0.000274,2]
[358751567,1745413831524,-2747.78484496,0.00029269,2]
[358751568,1745413831534,-271.33032667,0.00029936,2]
[358751569,1745413831545,-303.94,0.00030317,2]
[358751570,1745413831555,-152.0,0.00030899,2]
[358751571,1745413831565,-962.79788547,0.000309,9]
[358751572,1745413831577,-962.7978853,0.00031728,10]
[358751573,1745413831586,-300.0,0.00032554,3]
[358751574,1745413831600,-962.7978853,0.00032555,10]
[358751575,1745413831610,-338.25178224,0.000329,2]
[358751576,1745413831620,-962.7978853,0.00033383,11]
[358751577,1745413831629,-962.7978853,0.0003421,11]
[358751578,1745413831640,-962.7978853,0.00035038,12]
[358751579,1745413831649,-962.7978853,0.00035866,12]
[358751580,1745413831659,-962.7978853,0.00036693,13]
[358751581,1745413831669,-962.7978853,0.00037521,13]
[358751582,1745413831678,-962.7978853,0.00038348,14]
[358751583,1745413831689,-610.0,0.00038706,2]
[358751584,1745413831700,-23900.0,0.00038792,2]
[358751585,1745413831711,-374.14,0.0003904,2]
[358751586,1745413831721,-962.7978853,0.00039176,15]
[358751587,1745413831732,-301.43,0.0003937,2]
[358751588,1745413831742,-13328.40613602,0.00039445,2]
[358751589,1745413831752,-1444.0,0.00039812,2]
[358751590,1745413831761,-1285.0,0.00039812,2]
[358751591,1745413831771,-910.0,0.00039812,2]
[358751592,1745413831781,-547.0,0.00039812,2]
[358751593,1745413831791,-4166.0,0.00039812,2]
[358751594,1745413831800,-574.0,0.00039812,2]
[358751595,1745413831810,-1132.0,0.00039812,2]
[358751596,1745413831820,-876.0,0.00039812,2]
[358751597,1745413831830,-2145.0,0.00039812,2]
[358751599,1745413831840,-3984.0,0.00039812,2]
[358751601,1745413831850,-152.0,0.00039812,2]
[358751603,1745413831861,-12000.59537016,0.0003988,2]
[358751606,1745413831870,-962.7978853,0.00040003,15]
[358751609,1745413831880,-824.02,0.00040444,2]
[358751611,1745413831890,-158.06,0.0004083,2]
[358751615,1745413831901,-962.7978853,0.00040831,16]
[358751618,1745413831912,-9460.91302349,0.00040895,2]
[358751621,1745413831922,-2059.0,0.00041017,2]
[358751624,1745413831931,-1334.0,0.00041017,2]
[358751626,1745413831941,-796.0,0.00041017,2]
[358751628,1745413831951,-500.0,0.00041096,2]
[358751630,1745413831961,-530.0,0.00041178,2]
[358751632,1745413831971,-153.61,0.00041587,2]
[358751634,1745413831981,-962.7978853,0.00041659,16]
[358751636,1745413831991,-151.0,0.00041692,14]
[358751638,1745413832001,-151.0,0.00041692,14]
[358751640,1745413832011,-151.0,0.00041692,14]
[358751642,1745413832021,-151.0,0.00041692,14]
[358751643,1745413832031,-238.77858,0.00041692,14]
[358751646,1745413832041,-704.910719,0.00041692,14]
[358751647,1745413832052,-238.77858,0.00041692,14]
[358751649,1745413832063,-151.0,0.00041692,14]
[358751650,1745413832074,-158.621067,0.00041692,14]
[358751651,1745413832084,-158.621067,0.00041692,14]
[358751652,1745413832094,-151.0,0.00041692,14]
[358751653,1745413832105,-594.796423,0.00041692,14]
[358751654,1745413832115,-594.796423,0.00041692,14]
[358751655,1745413832125,-1000.0,0.00041695,2]
[358751656,1745413832135,-4706.94,0.00041814,2]
[358751657,1745413832145,-200.0,0.00041814,2]
[358751658,1745413832155,-1770.54,0.00042362,2]
[358751659,1745413832166,-250.0,0.00042362,2]
[358751660,1745413832176,-9768.87,0.00042362,2]
[358751661,1745413832186,-518.49,0.00042362,2]
[358751662,1745413832196,-200.0,0.00042386,2]
[358751663,1745413832206,-308.2639,0.00042424,2]
[358751664,1745413832216,-158.06,0.00042425,2]
[358751665,1745413832229,-504.96154271,0.0004245,10]
[358751666,1745413832239,-962.7978853,0.00042486,17]
[358751667,1745413832249,-500.0,0.00042524,2]
[358751668,1745413832259,-9469.43,0.00042524,2]
[358751669,1745413832270,-500.0,0.00042527,2]
[358751670,1745413832282,-500.0,0.00042527,3]
[358751671,1745413832296,-824.02,0.00042708,2]
[358751672,1745413832309,-1438.078,0.00042812,2]
[358751674,1745413832320,-1285.0,0.00042812,2]
[358751675,1745413832336,-499.527,0.00042812,2]
[358751676,1745413832347,-4166.0,0.00042812,2]
[358751677,1745413832359,-1132.0,0.00042812,2]
[358751678,1745413832370,-876.0,0.00042812,2]
[358751679,1745413832382,-2145.0,0.00042812,2]
[358751680,1745413832394,-3984.0,0.00042812,2]
[358751681,1745413832404,-152.0,0.00042812,2]
[358751682,1745413832415,-1828.98834803,0.00043,14]
[358751683,1745413832425,-166.67,0.00043002,2]
[358751684,1745413832436,-15968.614,0.000432,2]
[358751685,1745413832446,-2532.0675,0.000432,2]
[358751686,1745413832457,-546.2881,0.000432,2]
[358751687,1745413832467,-1474.9382,0.000432,2]
[358751688,1745413832478,-2450.9755,0.000432,2]
[358751689,1745413832488,-967.947,0.000432,10]
[358751690,1745413832498,-504.13932473,0.00043273,10]
[358751691,1745413832508,-500.0,0.00043273,10]
[358751692,1745413832519,-500.0,0.00043273,10]
[358751693,1745413832529,-500.0,0.00043273,10]
[358751694,1745413832539,-395.4762176,0.00043273,10]
[358751695,1745413832549,-500.0,0.00043273,10]
[358751696,1745413832559,-500.0,0.00043273,10]
[358751697,1745413832570,-500.0,0.00043273,10]
[358751698,1745413832583,-28675.6562461,0.0004329,4]
[358751699,1745413832594,-174998.30091823,0.000433,5]
[358751700,1745413832604,-248.771976,0.000433,14]
[358751701,1745413832614,-248.771976,0.000433,14]
[358751702,1745413832624,-151.0,0.000433,14]
[358751703,1745413832634,-151.418341,0.000433,14]
[358751704,1745413832644,-151.0,0.000433,14]
[358751705,1745413832655,-240.140931,0.000433,14]
[358751706,1745413832666,-240.140931,0.000433,14]
[358751707,1745413832676,-332.245943,0.000433,14]
[358751708,1745413832687,-332.245943,0.000433,14]
[358751709,1745413832696,-151.0,0.000433,14]
[358751710,1745413832706,-151.0,0.000433,14]
[358751711,1745413832715,-1306.445492,0.000433,14]
[358751712,1745413832725,-1306.445492,0.000433,14]
[358751713,1745413832736,-962.7978853,0.00043314,17]
[358751714,1745413832746,-48036.95109985,0.000434,2]
[358751715,1745413832760,-2974.39851776,0.000434,2]
[358751716,1745413832772,-450.05155706,0.000434,2]
[358751717,1745413832787,-1024.24093525,0.000434,2]
[358751718,1745413832799,-63909.33733716,0.000434,2]
[358751719,1745413832811,-381.7991848,0.000434,2]
[358751720,1745413832823,-189927.1447432,0.000434,2]
[358751721,1745413832840,-12549.88469912,0.000434,2]
[358751722,1745413832852,-6099.9999999,0.000434,2]
[358751723,1745413832863,-5880.0,0.000434,2]
[358751724,1745413832875,-3550.000005,0.000434,2]
[358751725,1745413833789,-1300.0,0.000434,2]
[358751726,1745413833801,-1162.41397087,0.000434,2]
[358751730,1745413837521,-364.92806701,0.00039812,2]
[358751731,1745413837579,-505.07193299,0.00039812,2]
[358751732,1745413837590,-1320.32958346,0.000434,2]
[358751963,1745413839969,-432.20742833,0.00043335,2]
[358751966,1745413839980,-4093.04257167,0.000434,2]
[358752227,1745413842706,-67478.0169197,0.000434,2]
[358752479,1745413845520,-1132.0,0.00039812,2]
[358752481,1745413845530,-1132.0,0.00042812,2]
[358752482,1745413845541,-390.22553002,0.000434,2]
[358752485,1745413845577,-12541.78501058,0.000434,2]
[358752499,1745413845799,-691.21582638,0.000434,2]
[358752731,1745413875207,765.66591028,0.00043836,30]
[358752734,1745413946962,504.8741671,0.00043,120]
[358752737,1745414038508,3700.37182938,0.00023,120]
[358752738,1745414043694,160.0,0.00043,90]
[358752742,1745414115379,50724.26317404,0.0004353,30]
[358752744,1745414118357,798.04,0.00043614,30]
[358752745,1745414309566,538.999,0.00042597,64]
[358752746,1745414410396,160.0,0.0004245,30]
[358752748,1745414499790,-10815.42320703,0.00046585,30]
[358752749,1745414499834,-12000.54,0.00046585,30]
[358752750,1745414499876,-12000.54,0.00046585,30]
[358752751,1745414499918,-12000.54,0.00046585,30]
[358752752,1745414499959,-12000.54,0.00046585,30]
[358752753,1745414500001,-12000.54,0.00046585,30]
[358752754,1745414500043,-12000.54,0.00046585,30]
[358752755,1745414500087,-12000.54,0.00046585,30]
[358752756,1745414500129,-12000.54,0.00046585,30]
[358752757,1745414500170,-12000.54,0.00046585,30]
[358752758,1745414500210,-12000.54,0.00046585,30]
[358752759,1745414500250,-12000.54,0.00046585,30]
[358752760,1745414500292,-12000.54,0.00046585,30]
[358752761,1745414500334,-12000.54,0.00046585,30]
[358752762,1745414500388,-12000.54,0.00046585,30]
[358752763,1745414500435,-12000.54,0.00046585,30]
[358752764,1745414500479,-12000.54,0.00046585,30]
[358752765,1745414500528,-12000.54,0.00046585,30]
[358752766,1745414500573,-12000.54,0.00046585,30]
[358752767,1745414500616,-12000.54,0.00046585,30]
[358752768,1745414500657,-12000.54,0.00046585,30]
[358752769,1745414500697,-12000.54,0.00046585,30]
[358752770,1745414500737,-12000.54,0.00046585,30]
[358752771,1745414500777,-12000.70150386,0.00046585,30]
[358752772,1745414500816,-1146.68,0.00046585,30]
[358752773,1745414500859,-1146.68,0.00046585,30]
[358752774,1745414500898,-1146.68,0.00046585,30]
[358752775,1745414500936,-1146.68,0.00046585,30]
[358752776,1745414500974,-1146.68,0.00046585,30]
[358752777,1745414501012,-1146.68,0.00046585,30]
[358752778,1745414501056,-1146.68,0.00046585,30]
[358752779,1745414501097,-1146.68,0.00046585,30]
[358752780,1745414501144,-1146.68,0.00046585,30]
[358752781,1745414501188,-1146.68,0.00046585,30]
[358752782,1745414501230,-1146.68,0.00046585,30]
[358752783,1745414501274,-1146.68,0.00046585,30]
[358752784,1745414501317,-1146.68,0.00046585,30]
[358752785,1745414501359,-1146.68,0.00046585,30]
[358752786,1745414501401,-1146.68,0.00046585,30]
[358752787,1745414501447,-1146.68,0.00046585,30]
[358752788,1745414501495,-1146.68,0.00046585,30]
[358752789,1745414501542,-1146.68,0.00046585,30]
[358752790,1745414501588,-1146.68,0.00046585,30]
[358752791,1745414501634,-1146.68,0.00046585,30]
[358752792,1745414501678,-1146.68,0.00046585,30]
[358752793,1745414501723,-1146.68,0.00046585,30]
[358752794,1745414501767,-1146.68,0.00046585,30]
[358752795,1745414501810,-1146.69365108,0.00046585,30]
[358752796,1745414501855,-574.21,0.00046585,30]
[358752797,1745414501901,-574.21,0.00046585,30]
[358752798,1745414501947,-574.21,0.00046585,30]
[358752799,1745414501988,-574.21,0.00046585,30]
[358752800,1745414502032,-574.21,0.00046585,30]
[358752801,1745414502076,-574.21,0.00046585,30]
[358752802,1745414502120,-574.21,0.00046585,30]
[358752803,1745414502165,-574.21,0.00046585,30]
[358752804,1745414502211,-574.21,0.00046585,30]
[358752805,1745414502254,-574.21,0.00046585,30]
[358752806,1745414502297,-574.21,0.00046585,30]
[358752807,1745414502340,-8247.87,0.00046585,30]
[358752808,1745414502381,-574.21,0.00046585,30]
[358752809,1745414502426,-8247.87,0.00046585,30]
[358752810,1745414502468,-8247.87,0.00046585,30]
[358752811,1745414502512,-574.21,0.00046585,30]
[358752812,1745414502557,-8247.87,0.00046585,30]
[358752813,1745414502598,-574.21,0.00046585,30]
[358752814,1745414502637,-8247.87,0.00046585,30]
[358752815,1745414502677,-574.21,0.00046585,30]
[358752816,1745414502714,-8247.87,0.00046585,30]
[358752817,1745414502754,-8247.87,0.00046585,30]
[358752818,1745414502795,-574.21,0.00046585,30]
[358752819,1745414502836,-8247.87,0.00046585,30]
[358752820,1745414502875,-574.21,0.00046585,30]
[358752821,1745414502915,-8247.87,0.00046585,30]
[358752822,1745414502957,-574.21,0.00046585,30]
[358752823,1745414502996,-574.21,0.00046585,30]
[358752824,1745414503037,-8247.87,0.00046585,30]
[358752825,1745414503078,-574.21,0.00046585,30]
[358752826,1745414503120,-8247.87,0.00046585,30]
[358752827,1745414503161,-574.21,0.00046585,30]
[358752828,1745414503202,-8247.87,0.00046585,30]
[358752829,1745414503245,-574.21,0.00046585,30]
[358752830,1745414503289,-8247.87,0.00046585,30]
[358752831,1745414503332,-574.21,0.00046585,30]
[358752832,1745414503374,-8247.87,0.00046585,30]
[358752833,1745414503417,-574.41783103,0.00046585,30]
[358752834,1745414503460,-8247.87,0.00046585,30]
[358752835,1745414503503,-8247.87,0.00046585,30]
[358752836,1745414503545,-8247.87,0.00046585,30]
[358752837,1745414503588,-8247.87,0.00046585,30]
[358752838,1745414503628,-8247.87,0.00046585,30]
[358752839,1745414503667,-8247.87,0.00046585,30]
[358752840,1745414503946,-8247.87,0.00046585,30]
[358752841,1745414503989,-8247.87,0.00046585,30]
[358752842,1745414504031,-8247.87,0.00046585,30]
[358752843,1745414504073,-8248.03346793,0.00046585,30]
[358752844,1745414504113,-1347.02,0.00046585,30]
[358752845,1745414504153,-1347.02,0.00046585,30]
[358752846,1745414504195,-1347.02,0.00046585,30]
[358752847,1745414504233,-1347.02,0.00046585,30]
[358752848,1745414504272,-1347.02,0.00046585,30]
[358752849,1745414504311,-1347.02,0.00046585,30]
[358752850,1745414504352,-1347.02,0.00046585,30]
[358752851,1745414504394,-1347.02,0.00046585,30]
[358752852,1745414504435,-1347.02,0.00046585,30]
[358752853,1745414504478,-1347.02,0.00046585,30]
[358752854,1745414504523,-1347.02,0.00046585,30]
[358752855,1745414504566,-1347.02,0.00046585,30]
[358752856,1745414504607,-1347.02,0.00046585,30]
[358752857,1745414504649,-1347.02,0.00046585,30]
[358752858,1745414504690,-801.42,0.00046585,30]
[358752859,1745414504731,-801.42,0.00046585,30]
[358752860,1745414504775,-1347.02,0.00046585,30]
[358752861,1745414504815,-500.0,0.00046585,30]
[358752862,1745414504857,-801.42,0.00046585,30]
[358752863,1745414504901,-1347.02,0.00046585,30]
[358752864,1745414504944,-500.0,0.00046585,30]
[358752865,1745414504985,-801.42,0.00046585,30]
[358752866,1745414505026,-500.0,0.00046585,30]
[358752867,1745414505065,-801.42,0.00046585,30]
[358752868,1745414505106,-500.0,0.00046585,30]
[358752869,1745414505148,-1347.02,0.00046585,30]
[358752870,1745414505191,-500.0,0.00046585,30]
[358752871,1745414505235,-1347.02,0.00046585,30]
[358752872,1745414505276,-801.42,0.00046585,30]
[358752873,1745414505317,-500.0,0.00046585,30]
[358752874,1745414505358,-1347.02,0.00046585,30]
[358752875,1745414505401,-801.42,0.00046585,30]
[358752876,1745414505443,-500.0,0.00046585,30]
[358752877,1745414505485,-1347.02,0.00046585,30]
[358752878,1745414505528,-801.42,0.00046585,30]
[358752879,1745414505568,-500.0,0.00046585,30]
[358752880,1745414505607,-1347.02,0.00046585,30]
[358752881,1745414505646,-801.42,0.00046585,30]
[358752882,1745414505683,-500.0,0.00046585,30]
[358752883,1745414505722,-1347.02,0.00046585,30]
[358752884,1745414505759,-801.42,0.00046585,30]
[358752885,1745414505796,-500.0,0.00046585,30]
[358752886,1745414505837,-801.42,0.00046585,30]
[358752887,1745414505876,-801.42,0.00046585,30]
[358752888,1745414505916,-500.0,0.00046585,30]
[358752889,1745414505957,-1347.02,0.00046585,30]
[358752890,1745414505996,-801.42,0.00046585,30]
[358752891,1745414506035,-603.05922921,0.00046585,30]
[358752892,1745414506074,-1347.21912091,0.00046585,30]
[358752893,1745414506114,-801.42,0.00046585,30]
[358752894,1745414506153,-801.42,0.00046585,30]
[358752895,1745414506192,-801.42,0.00046585,30]
[358752896,1745414506232,-801.42,0.00046585,30]
[358752897,1745414506272,-801.42,0.00046585,30]
[358752898,1745414506310,-801.42,0.00046585,30]
[358752899,1745414506350,-801.42,0.00046585,30]
[358752900,1745414506390,-801.42,0.00046585,30]
[358752901,1745414506430,-801.42,0.00046585,30]
[358752902,1745414506472,-801.42,0.00046585,30]
[358752903,1745414506516,-801.54159042,0.00046585,30]
[358752904,1745414506563,-832.37,0.00046585,30]
[358752905,1745414506605,-832.37,0.00046585,30]
[358752906,1745414506645,-832.37,0.00046585,30]
[358752907,1745414506685,-832.37,0.00046585,30]
[358752908,1745414506723,-832.37,0.00046585,30]
[358752909,1745414506760,-832.37,0.00046585,30]
[358752910,1745414506796,-832.37,0.00046585,30]
[358752911,1745414506833,-832.37,0.00046585,30]
[358752912,1745414506871,-832.37,0.00046585,30]
[358752913,1745414506909,-832.37,0.00046585,30]
[358752914,1745414506949,-832.37,0.00046585,30]
[358752915,1745414506990,-832.37,0.00046585,30]
[358752916,1745414507030,-832.37,0.00046585,30]
[358752917,1745414507071,-832.37,0.00046585,30]
[358752918,1745414507112,-832.37,0.00046585,30]